Cogmind - Beta 13 @@@ ROGUE MODE // 2024.04.24 @ 23:45:52 Player: Cherman0 Result: Destroyed by G-34 Mercenary with Small Laser Performance ------------- Evolutions (1) 500 Regions Visited (4) 800 Robots Destroyed (114) 570 Value Destroyed (2793) 2793 Prototype IDs (10) 200 Alien Tech Used (0) 0 Bonus (85) 85 TOTAL SCORE: 4948 Bonus ------- High Alert Combat Kills 306 Follower Combat Kills 489 Friendly Fire -710 Cogmind --------- Core Integrity 0/400 Matter 282/300 Energy 265/265 System Corruption 0% Temperature Cool (86) Movement Treading (240) Ox1 Location -9/Storage Parts ------- > --- POWER (1) -------- Improved Ion Engine > --- PROPULSION (3) --- Improved Treads Improved Treads Improved Treads > --- UTILITY (3) ------ Huge Storage Unit Light Armor Plating Hacking Suite > --- WEAPON (2) ------- Advanced Beam Cannon Improved Light Cannon > --- INVENTORY (25) --- Heavy Ion Engine Light Treads Light Treads Light Treads Light Treads Improved Treads Improved Treads Cooling System High-capacity Battery (250) High-capacity Matter Pod (200) Improved Terrain Scanner Light Armor Plating Hacking Suite Hacking Suite High-powered Tractor Beam Improved EM Shotgun Advanced Beam Cannon Advanced Beam Cannon Improved Light Cannon Rocket Launcher Improved Grenade Launcher Improved Grenade Launcher Datajack Plasma Cutter Flail Peak State ------------ > --- POWER ------------ Improved Ion Engine > --- PROPULSION ------- Improved Treads Improved Treads Improved Treads > --- UTILITY ---------- Huge Storage Unit Light Armor Plating Hacking Suite > --- WEAPON ----------- Advanced Beam Cannon Improved Light Cannon > --- INVENTORY -------- Heavy Ion Engine Light Treads Light Treads Light Treads Light Treads Improved Treads Improved Treads Cooling System High-capacity Battery High-capacity Matter Pod Improved Terrain Scanner Light Armor Plating Hacking Suite Hacking Suite High-powered Tractor Beam Improved EM Shotgun Advanced Beam Cannon Advanced Beam Cannon Improved Light Cannon Rocket Launcher Improved Grenade Launcher Improved Grenade Launcher Datajack Plasma Cutter Flail [Rating: 23] Favorites ----------- Power Ion Engine Engine Ion Engine Propulsion Light Treads Treads Light Treads Leg Aluminum Leg Flight Unit Improved Flight Unit Utility High-capacity Storage Unit Device Structural Scanner Storage High-capacity Storage Unit Hackware Hacking Suite Protection Light Armor Plating Weapon Improved Light Cannon Energy Gun Improved EM Shotgun Energy Cannon Advanced Beam Cannon Ballistic Gun Assault Rifle Ballistic Cannon Improved Light Cannon Launcher Grenade Launcher Special Weapon Mining Laser Impact Weapon Hammer Special Melee Weapon Datajack Build | -11 -10 -10 -9 -9 ------- Run | Yrd Mat Min Mat Sto Slots Evolved 2 | . . . 2 . Power . | . . . . . Propulsion 1 | . . . 1 . Utility 1 | . . . 1 . Weapon . | . . . . . Parts Attached 136 | 3 20 2 89 22 Power 5 | . 1 . 3 1 Engine 5 | . 1 . 3 1 Core . | . . . . . Reactor . | . . . . . Propulsion 36 | 2 1 . 26 7 Treads 34 | 2 1 . 24 7 Leg . | . . . . . Wheel . | . . . . . Hover . | . . . . . Flight 2 | . . . 2 . Utility 23 | 1 3 . 13 6 Device 6 | 1 . . 4 1 Storage 4 | . 2 . 1 1 Processor . | . . . . . Hackware 1 | . . . . 1 Protection 12 | . 1 . 8 3 Artifact . | . . . . . Weapon 72 | . 15 2 47 8 Energy Gun 8 | . . . 8 . Energy Cannon 12 | . . . 9 3 Ballistic Gun 8 | . 6 . 2 . Ballistic Cannon 23 | . 4 . 16 3 Launcher 11 | . 3 2 6 . Special Weapon 1 | . . . 1 . Impact Weapon 8 | . 2 . 4 2 Slashing Weapon . | . . . . . Piercing Weapon . | . . . . . Special Melee Weapon 1 | . . . 1 . Unidentified Prototypes 4 | . . . 4 . Parts Lost 12 | . 1 . 10 1 Power . | . . . . . Propulsion 3 | . . . 3 . Utility 7 | . 1 . 5 1 Weapon 2 | . . . 2 . Highest Loss Streak 3 | . 1 . 3 1 To Critical Strikes . | . . . . . Average Slot Usage (%) 97 | . 96 100 95 99 Engine 12 | . 14 14 11 11 Treads 30 | . 28 28 32 32 Device 3 | . 3 . 6 1 Storage 12 | . 14 14 11 11 Hackware 2 | . . . . 10 Protection 10 | . 7 14 12 9 Energy Gun 2 | . . . 7 . Energy Cannon 2 | . . . 3 7 Ballistic Gun 4 | . 17 . . . Ballistic Cannon 7 | . 8 . 8 12 Launcher 5 | . . 28 2 . Naked Turns . | . . . . . Heaviest Build 98 | 12 54 54 65 98 Greatest Support 69 | 40 40 40 63 69 Greatest Overweight (x) 1 | . 1 1 1 1 Average Overweight (x) . | . . 1 . . Largest Inventory Capacity 25 | 8 20 20 20 25 Average Capacity 19 | 8 17 20 20 21 Most Carried 25 | 6 19 20 20 25 Average Carried 17 | 2 12 19 19 20 Final Capacity 25 | 8 20 20 20 25 Final Carried 25 | 4 19 20 18 25 Class Distribution -------------------- 78% | Mutant 17% | Scavenger-Mutant 4% | Commander-Mutant Dominant Class ---------------- Mutant | -10/Materials Mutant | -10/Mines Mutant | -9/Materials Mutant | -9/Storage Resources | -11 -10 -10 -9 -9 ----------- Run | Yrd Mat Min Mat Sto Matter Collected 3105 | 263 514 502 1464 362 Remotely 609 | . . . 489 120 Salvage Created 3417 | 138 597 77 1724 881 Parts 241 | 6 51 6 116 62 Haulers Intercepted 12 | . 2 . 6 4 Recyclers Shooed 5 | 1 2 . 1 1 Parts Field Recycled . | . . . . . Retrieved Matter . | . . . . . Parts Self-Destructed . | . . . . . Prevented . | . . . . . Kills | -11 -10 -10 -9 -9 ------- Run | Yrd Mat Min Mat Sto Combat Hostiles Destroyed 76 | . 15 10 38 13 Guns 8 | . 4 . 4 . Cannons 32 | . 5 . 17 10 AOE 35 | . 6 10 16 3 Classes Destroyed 14 | 2 6 1 5 . Worker 3 | . . . 2 1 Builder 7 | . 1 2 3 1 Tunneler 3 | 2 . . 1 . Hauler 12 | . 2 . 6 4 Recycler 5 | 1 1 1 1 1 Operator 5 | . 2 . 2 1 Watcher 9 | . 3 . 5 1 Swarmer 10 | . 5 . 2 3 Grunt 36 | . 10 . 20 6 Brawler 1 | . . . 1 . Duelist 4 | . . . 4 . Protector 2 | . . . 2 . Sentry 17 | . . . 9 8 Assembled 10 | . . 10 . . Best Kill Streak 8 | 2 4 4 8 5 Combat Bots Only 8 | . 2 3 8 3 Max Kills in Single Turn 4 | 1 2 3 3 4 Gunslinging . | . . . . . Exploded 3 | . 2 2 3 3 Melee . | . . . . . Uniques/NPCs Destroyed . | . . . . . Combat | -11 -10 -10 -9 -9 -------- Run | Yrd Mat Min Mat Sto Hostile Shots Fired 280 | . 51 4 187 38 Missed 68 | . 12 1 40 15 Damage Taken 3728 | . 393 121 2830 384 Core 456 | . 50 . 296 110 Absorbed by Shields . | . . . . . Redirected to Shielding 182 | . . . 182 . Regen/Repaired (Parts) 354 | . 69 . 124 161 Core Remaining (%) 90 | 100 . 80 . . Volleys Fired 256 | 11 60 11 135 39 Largest 2 | 2 2 2 2 2 Hottest 128 | 60 70 60 128 107 Shots Fired 447 | 22 109 22 225 69 Gun 166 | 22 83 . 61 . Cannon 233 | . 20 . 144 69 Launcher 47 | . 6 22 19 . Special 1 | . . . 1 . Kinetic 256 | 11 103 . 100 42 Thermal 84 | 11 . . 46 27 Explosive 47 | . 6 22 19 . Electromagnetic 60 | . . . 60 . Robot Hit Streak 24 | 10 8 4 7 24 Robot Miss Streak 3 | 1 3 . 3 3 Penetration Max . | . . . . . Secondary Targets . | . . . . . Shots Hit Robots 266 | 15 67 2 135 47 Core Hits 160 | 4 33 18 78 27 Critical Kills 2 | . 1 . 1 . Critical Parts Destroyed . | . . . . . Critical Strikes 6 | . 2 . 4 . Meltdown 1 | . . . 1 . Destroy 1 | . 1 . . . Blast 4 | . 1 . 3 . Melee Attacks 20 | . 3 . 12 5 Impact 20 | . 3 . 12 5 Slashing . | . . . . . Piercing . | . . . . . Sneak Attacks 3 | . . . 1 2 Combat Hostiles . | . . . . . Follow-up Attacks . | . . . . . Damage Inflicted 8654 | 174 1313 733 4590 1844 Guns 1806 | 174 700 . 932 . Cannons 2724 | . 181 . 1578 965 Explosions 3731 | . 429 726 1974 602 Melee 315 | . . . 55 260 Ramming 78 | . 3 7 51 17 Kinetic 2505 | 98 881 . 1032 494 Thermal 1422 | 76 . . 875 471 Explosive 3378 | . 429 726 1621 602 Electromagnetic 956 | . . . 956 . Impact 315 | . . . 55 260 Slashing . | . . . . . Piercing . | . . . . . Highest Corruption . | . . . . . Average Corruption . | . . . . . Corruption Purged . | . . . . . Corruption Blocked . | . . . . . Overload Shots . | . . . . . Overflow Damage 386 | . 24 65 119 178 Projectiles 13 | . . . 13 . Explosions 200 | . 24 65 103 8 Melee 173 | . . . 3 170 Knockbacks 12 | . . . 9 3 Impact 2 | . . . . 2 Kinetic 10 | . . . 9 1 Secondary . | . . . . . Self-Inflicted Damage 628 | . . 82 510 36 Shots 18 | . . 4 13 1 Rammed 15 | . 2 1 7 5 Targets Rammed 16 | . 2 1 8 5 Kicked . | . . . . . Crushed 1 | . . . 1 . Highest Temperature 315 | 20 96 18 315 258 Average Temperature 63 | 20 34 8 73 58 Received Heat Transfer 939 | . 135 . 654 150 Effects 3 | . . . 3 . Energy Bleed 1 | . . . 1 . Interference 2 | . . . 2 . Siege Activations . | . . . . . Robots Corrupted 3 | . . . 3 . Combat Hostiles 1 | . . . 1 . Parts Fried 6 | . . . 6 . Impact Corruptions 6 | . . . 2 4 Robots Melted 1 | . . . 1 . Combat Hostiles . | . . . . . Parts Melted 4 | . . . 4 . Heat Transferred 2362 | 175 . . 1336 851 Parts Sabotaged . | . . . . . Parts Stolen . | . . . . . Parts Stripped . | . . . . . Power Chain Reactions 4 | . . . 4 . Alert | -11 -10 -10 -9 -9 ------- Run | Yrd Mat Min Mat Sto Peak Influence 934 | 15 233 85 934 469 Initial 393 | . 9 38 . 393 Average 269 | 8 82 22 472 311 Maximum Alert Level 3 | . 1 . 3 2 Low Security (%) 48 | 100 91 100 18 14 Level 1 23 | . 8 . 14 72 Level 2 20 | . . . 45 13 Level 3 8 | . . . 21 . Level 4 . | . . . . . Level 5 . | . . . . . High Security . | . . . . . Max Security . | . . . . . Squads Dispatched 17 | . 4 . 9 4 Investigation 8 | . 2 . 4 2 Extermination . | . . . . . Reinforcement 6 | . 2 . 2 2 Assault 3 | . . . 3 . Garrison . | . . . . . Intercept . | . . . . . Searches Triggered . | . . . . . Construction Impeded 2 | . . . 1 1 Haulers Reinforced . | . . . . . Active Scanning Responses . | . . . . . Cargo Convoy Interrupts . | . . . . . Stealth | -11 -10 -10 -9 -9 --------- Run | Yrd Mat Min Mat Sto Distress Signals 7 | . 1 1 3 2 Communications Jammed . | . . . . . Distress Signals . | . . . . . Times Spotted 136 | . 29 13 65 29 Peak Tracking Total 7 | . 4 2 7 3 Tactical Retreats 8 | . 1 2 3 2 Traps | -11 -10 -10 -9 -9 ------- Run | Yrd Mat Min Mat Sto Traps Triggered 3 | . . . 2 1 Indirectly . | . . . . . Trap Hack Attempts 14 | . . . 14 . Triggered . | . . . . . Disarmed 1 | . . . 1 . Reprogrammed . | . . . . . Reused . | . . . . . Traps Extracted . | . . . . . Installed . | . . . . . Triggered . | . . . . . Machines | -11 -10 -10 -9 -9 ---------- Run | Yrd Mat Min Mat Sto Machines Disabled 19 | . 2 . 13 4 Max in Single Turn 4 | . 1 . 4 1 Machines Repaired . | . . . . . Machines Dismantled . | . . . . . Machines Sabotaged . | . . . . . Overloaded Fab Kills . | . . . . . Hacking | -11 -10 -10 -9 -9 --------- Run | Yrd Mat Min Mat Sto Machines Accessed 32 | . 7 . 13 12 Terminals 24 | . 5 . 10 9 Fabricators . | . . . . . Repair Stations 3 | . 1 . 1 1 Recycling Units 4 | . 1 . 2 1 Scanalyzers . | . . . . . Garrison Access 1 | . . . . 1 Total Hacks 93 | . 20 . 41 32 Successful 51 | . 9 . 19 23 Failed 42 | . 11 . 22 9 Catastrophic 10 | . 2 . 5 3 Database Lockouts . | . . . . . Manual 43 | . 13 . 20 10 Terminals 71 | . 14 . 33 24 Fabricators . | . . . . . Repair Stations 10 | . 3 . 3 4 Recycling Units 11 | . 3 . 5 3 Scanalyzers . | . . . . . Garrison Access 1 | . . . . 1 Terminal Hacks 32 | . 3 . 13 16 Record 1 | . . . 1 . Prototype ID Bank 9 | . 3 . 3 3 Open Door 1 | . . . . 1 Branch Access Points 1 | . . . 1 . Terminal Index 2 | . . . 1 1 Alert Level 3 | . . . 1 2 Unreport Threat 4 | . . . 1 3 Locate Traps 2 | . . . . 2 Dispatch Records 1 | . . . 1 . Hauler Manifests 1 | . . . . 1 Registered Components 2 | . . . 1 1 Zone Layout 5 | . . . 3 2 Fabricator Hacks . | . . . . . Repair Station Hacks 8 | . 2 . 2 4 Scan Component 4 | . 1 . 1 2 Repair 4 | . 1 . 1 2 Recycling Unit Hacks 1 | . . . . 1 Retrieve Components 1 | . . . . 1 Scanalyzer . | . . . . . Garrison Access Hacks 1 | . . . . 1 Unlock Access 1 | . . . . 1 Unauthorized Hacks 9 | . 4 . 4 1 Terminals 1 | . 1 . . . Assimilate 1 | . 1 . . . Fabricators . | . . . . . Repair Stations . | . . . . . Recycling Units 8 | . 3 . 4 1 Reject 3 | . 1 . 1 1 Recyclers 3 | . 1 . 2 . Mask 2 | . 1 . 1 . Scanalyzers . | . . . . . Garrison Access . | . . . . . Data Cores Recovered 1 | . . . . 1 Used . | . . . . . Hacking Detections 29 | . 6 . 13 10 Full Trace Events 6 | . 2 . 3 1 Feedback Events . | . . . . . Feedback Blocked . | . . . . . Robot Schematics Acquired . | . . . . . Robots Built . | . . . . . Authchips . | . . . . . Time . | . . . . . Total Robot Build Rating . | . . . . . Part Schematics Acquired . | . . . . . Parts Built . | . . . . . Authchips . | . . . . . Time . | . . . . . Total Part Build Rating . | . . . . . Parts Repaired 4 | . 1 . 1 2 Time 122 | . 26 . 26 70 Parts Recycled . | . . . . . Recycled Matter . | . . . . . Retrieved Matter . | . . . . . Retrieved Components 9 | . . . . 9 Parts Scanalyzed . | . . . . . Part Schematics Acquired . | . . . . . Parts Damaged . | . . . . . Bothacking | -11 -10 -10 -9 -9 ------------ Run | Yrd Mat Min Mat Sto Used RIF Installer . | . . . . . Robots Hacked . | . . . . . Non-combat . | . . . . . Combat . | . . . . . Robot Hacks Applied . | . . . . . Relay Couplers Released . | . . . . . Fabnet Peak Effective % . | . . . . . Robots Rewired . | . . . . . Allies Hacked . | . . . . . Hacks Repelled . | . . . . . Allies | -11 -10 -10 -9 -9 -------- Run | Yrd Mat Min Mat Sto Total Allies 13 | . . 3 . 10 Largest Group 10 | . . 3 3 10 Highest-Rated Group 88 | . . 40 40 88 Highest-Rated Ally 16 | . . 16 16 16 Total Orders . | . . . . . Ally Attacks 138 | . . . 52 86 Total Damage 1250 | . . . 503 747 Kills 23 | . . . 10 13 Allies Corrupted . | . . . . . Allies Melted . | . . . . . Intel | -11 -10 -10 -9 -9 ------- Run | Yrd Mat Min Mat Sto Robot Analysis Total . | . . . . . Derelict Logs Recovered 1 | . . 1 . . Drone Launches . | . . . . . Drone Recoveries . | . . . . . Exploration | -11 -10 -10 -9 -9 ------------- Run | Yrd Mat Min Mat Sto Turns Passed 9746 | 84 2310 1564 3679 2109 Spaces Moved 4122 | 27 828 623 1689 955 Core . | . . . . . Treads 4122 | 27 828 623 1689 955 Legs . | . . . . . Wheels . | . . . . . Hover . | . . . . . Flight . | . . . . . Fastest Speed 160 | 160 160 240 160 160 Average Speed 191 | 160 220 240 166 179 Slowest Speed 240 | 160 240 240 240 240 Overloaded Moves . | . . . . . Propulsion Burnouts . | . . . . . Robots Hopped . | . . . . . Cave-ins Triggered . | . . . . . Exploration Rate (%) 78 | 3 98 98 97 96 Regions Visited 4 Branch Regions 2 Pre-discovered Areas . | . . . . . Known Exits Taken 1 | . . . 1 . Unknown Exits Taken 3 | 1 1 1 . . Scrap Searched 3 | . . 3 . . Spaces Dug 69 | . 6 32 30 1 Terrain Destroyed 365 | . 26 115 191 33 Melee 8 | . 1 . 6 1 Projectile 9 | . . . 9 . AOE 348 | . 25 115 176 32 Terrain Rammed . | . . . . . Walls Destroyed . | . . . . . Machines Disabled . | . . . . . Actions | -11 -10 -10 -9 -9 --------- Run | Yrd Mat Min Mat Sto Total 5489 | 46 1194 670 2304 1275 Wait 808 | . 259 31 293 225 Move 4118 | 26 827 622 1688 955 Hop . | . . . . . Pick Up 54 | 2 18 2 21 11 Fast Attach 20 | 1 . . 16 3 Attach 12 | . 1 . 11 . Detach 1 | . . . 1 . Swap 104 | 2 19 2 62 19 Drop 66 | 4 5 1 43 13 Fire 256 | 11 60 11 135 39 Melee 20 | . 3 . 12 5 Ram . | . . . . . Kick . | . . . . . Crush 16 | . 2 1 8 5 Escape Stasis . | . . . . . Rewire . | . . . . . Trap 14 | . . . 14 . Miscellaneous . | . . . . . Route ------- -11/Scrapyard -10/Materials (discovered 5 exits: *Mat x3 / [*Min x2]) -10/Mines (discovered 2 exits: *Mat x2) -9/Materials (discovered 6 exits: [*Mat x3] / *Min x2 / *Sto) -9/Storage (discovered 2 exits: [*Mat] / Gar) History --------- Turn | Location | Event 15 | -11/Scrapyard | Discovered new exit (range 2) 85 | -11/Scrapyard | Entered Materials 313 | -10/Materials | Build established: Mutant 411 | -10/Materials | Discovered new exit (range 15) 424 | -10/Materials | Discovered new exit (range 15) 633 | -10/Materials | Discovered new exit (range 5) 810 | -10/Materials | Discovered new exit (range 9) 1475 | -10/Materials | Discovered new exit (range 15) 1682 | -10/Materials | Repaired Lgt. Treads 2395 | -10/Materials | Entered Mines 2396 | -10/Mines | Assembled infested the area 2401 | -10/Mines | Assisted by a Guerilla fighting off Assembled 2433 | -10/Mines | Learned Materials non-interactive machine intel 2640 | -10/Mines | Discovered new exit (range 9) 2994 | -10/Mines | Received a Rocket Launcher from a helpful Derelict 3169 | -10/Mines | Discovered new exit (range 8) 3465 | -10/Mines | Assisted by bots powering up and referring to "LRC-V3" 3959 | -10/Mines | Entered Materials 3959 | -9/Materials | Accompanied by 3 allies 3959 | -9/Materials | Evolved 2 slots: Propulsion x1, Utility x1 3960 | -9/Materials | Loaded intel: 44 non-interactive machine locations 4391 | -9/Materials | Identified exit to Mines 4391 | -9/Materials | Identified exit to Storage 5126 | -9/Materials | Discovered new exit (range 16) 5128 | -9/Materials | Build established: Scavenger-Mutant 5999 | -9/Materials | Lost 3 parts (1u2w) 6466 | -9/Materials | Discovered new exit (range 16) 6759 | -9/Materials | First assault squad dispatched 6815 | -9/Materials | Build established: Mutant 6884 | -9/Materials | Destroyed 8 combat bots 6944 | -9/Materials | Discovered new exit (range 15) 7217 | -9/Materials | Core integrity fell below 50% 7355 | -9/Materials | Repaired Lgt. Treads 7638 | -9/Materials | Entered Storage 7835 | -9/Storage | Repaired Imp. Treads 7874 | -9/Storage | Repaired Imp. Grenade Launcher 8020 | -9/Storage | Identified exit to Garrison 8141 | -9/Storage | Assisted by bots powering up and referring to "LRC-V3" 8438 | -9/Storage | Build established: Commander-Mutant 8581 | -9/Storage | Core integrity fell below 20% 8611 | -9/Storage | Lost 6 allies 8877 | -9/Storage | Build established: Mutant 9050 | -9/Storage | Discovered new exit (range 8) 9747 | -9/Storage | Destroyed by G-34 Mercenary with Small Laser Last Messages --------------- GLDXT97AYZ: Heat Sink Downloaded coordinate data. 09519_ R-06 Scavenger collects Hover Unit. 09520_ Connecting with Terminal... 09522_ R-06 Scavenger collects Sensor Array. 09537_ Connecting with Repair Station... 09615_ O-16 Technician: "IFF HANDSHAKE FAILED. SECURING TERMINAL." 09616_ ALERT: Hostiles spotted, dispatching reinforcements to Terminal S003. 09628_ Y-45 Defender destroyed. 09632_ K-01 Serf collects debris. 09662_ Connecting with Door Terminal... >>Open(Door) Sealed Heavy Doors opened. 09669_ Dropped Imp. EM Shotgun. 09669_ Acquired Adv. Beam Cannon. 09674_ Dropped Adv. Beam Cannon. 09684_ Acquired Adv. Beam Cannon. 09688_ Acquired Imp. EM Shotgun. 09742_ G-34 Mercenary destroyed. Map ----- +----------------------------------------------------+ | | | | | ????????????????????????????????????????????? | | ????????????????????????????????????????????? | | ????????????????????????????????????????????? | | ????????????????????????????????????????????? | | ????????????????????????????????????????????? | | ????????????????????????????????????????????? | | ????????????????????????????????????????????? | | #??????????????????????????###??????????????? | | #??????????????????????#####T##?????????????? | | #??????????????????????#[[[ #?????????????? | | #??????????????????????#] #?????????????? | | #??????????????????????##### #?##??????????? | | #??????????????#?????########+##T#"?????????? | | #??????????##### ###?# "?????????? | | #??????????# T?# "?????????? | | #######????# # ###+######"?????????? | | # #????# # # #?????????????? | | [* #????# +% # #?????????????? | | [% #????# # # #?????????????? | | ! ! #????# """"" # # #?????????????? | | # #????? """"" ?# # #?????????????? | | #####"#???????"""" ?# # #?????????????? | | #######????######## # #?????????????? | | # ######## #@ #?????????????? | | "" # [g% #?????????????? | | "" + T ################* #?????????????? | | "" # #??????????????# #?????????????? | | # #??????????????# #?????????????? | | ## ########????????#######?????????????? | | ## # ?????????????????????????????? | | "# ## # """"" ###########????#####???????? | | "#### !*# """"" # #????#"""#???????? | | "#??# =%+ """"" # ######"T"######??? | | ##??# # # # #??? | | ????# # """"" # """""" + #??? | | ????# # """"" # "[[]=" # """ #??? | | ????# # """"" # "!![!" # "G" #??? | | ????# # # """"" # ">" ###? | | ????## ###T### ## # ""#? | | ?????# #??#######+########### ""#? | | #????# #??# # #?????????# """ T"#? | | #????# #??# # ########### """ ""#? | | #????# #??# T# """ ""#? | | #????# #??## ## ###? | | #????# #####+#### ^^ % #??? | | #????# ^^#########/###### #??? | | ?????# % %% #?????#= !! #?# #??? | | ?????# "" ###+## #?????# """" #?# #??? | +----------------------------------------------------+ Best States ------------- Heat Dissipation 28 Energy Generation 14 Energy Capacity 280 Matter Stores 500 Matter Capacity 500 Sight Range 16 Terrain Scan Density 10 Armor Coverage 300 Weapon Shielding 66 Evasion (%) 40 Recoil Reduction 3 Offensive Hacking 10 Item Schematics ----------------- None Robot Schematics ------------------ None Fabricated ------------ Nothing Alien Tech Used ----------------- None Achievements -------------- None Challenges ------------ None Game ------ Seed PowerControlBooster Manual? 0 Play Time 01:23:46 Cumulative 63.2 hours Start 2024.04.24 @ 19:20:35 End 2024.04.24 @ 23:45:52 Sessions 2 Manual Loads 0 Difficulty Rogue Special Mode None Game No. 37 Rogue 37 Adventurer 0 Explorer 0 Win Type - Total 0 Types 0/0/0/0/0/0/0/0/0 Lore% 28 Gallery% 38 Achievement% 32 Wizard Run 0 Options --------- Layout 0 ASCII 0 Keyboard 0 Movement Mouse Keybinds 1 Fullscreen 1 Font 18/SmallcapsGlow Map View 76x50 Zoom Use 0% Tactical HUD 1 Map Filters NONE Filters NONE Steam 1 RUN: 3ece7fec-86a5-4128-8a78-a7e4a1b5c702